[Event "LAT-ch Women 2017"]
[Site "Riga"]
[Date "2017.10.09"]
[Round "6"]
[White "Limanovska, Elizabete"]
[Black "Krumina, Linda"]
[Result "0-1"]
[ECO "B41"]
[WhiteElo "1972"]
[BlackElo "2096"]
[Annotator "NA RC"]
[PlyCount "90"]
[EventDate "2017.??.??"]
[EventType "swiss"]
[EventCountry "LAT"]
[SourceTitle "playchess.com"]
[Source "ChessBase"]
[SourceQuality "1"]
[TimeControl "5400+30"]

{[%evp 27,90,-39,0,-40,0,-36,-16,-11,-15,-9,-16,-43,0,-8,0,0,29,31,64,42,54,40,51,-39,32767,32767,32767,0,0,32767,109,-21,0,0,0,0,0,0,0,-154,-60,-65,-16,-63,135,94,81,0,0,0,60,-1339,-2485,-1337,-1387,-1231,-1226,-1078,-1328,-800,-1247,-832,-1330,-949,-1051]} 1. e4 {[%emt 0:00:00]} c5 {[%emt 0:00:07]} 2. Nf3 {[%emt 0:00:00]} e6 {[%emt 0:00:04]} 3. d4 {[%emt 0:00:05]} cxd4 {[%emt 0:00:06]} 4. Nxd4 {[%emt 0:00:03]} a6 {[%emt 0:00:03]} 5. c4 {[%emt 0:00:27]} Nc6 {[%emt 0:00:37]} 6. Nc3 {[%emt 0:04:09]} Qc7 {[%emt 0:03:41]} 7. Nxc6 {[%emt 0:09:59] B41: Sicilian: Kan Variation: 5 c4} (7. Be2 Nf6 8. O-O h5 9. h3 Bc5 10. Be3 b6 11. Rc1 Bb7 12. Nc2 Ne5 13. b4 Bxe3 14. Nxe3 Nxe4 15. Nxe4 Bxe4 16. Qd4 {1-0 (27) Naiditsch,A (2687)-Miezis,N (2509) Tallinn 2016}) 7... dxc6 {[%emt 0:06:05]} 8. a4 $146 {[%emt 0:08:20]} ({Predecessor:} 8. Be3 Nf6 9. Qb3 Bd6 10. g3 e5 11. f3 Be6 12. Bb6 Qe7 13. O-O-O Nd7 14. Na4 Nxb6 15. Qxb6 {0-1 (22) Szczurek,K (2070)-Karas,M (2273) Banska Stiavnica 2017}) 8... Nf6 {[%emt 0:04:29]} 9. g3 {[%emt 0:11:11]} Bb4 {[%emt 0:02:20]} 10. Bg2 {[%emt 0:00:52]} O-O {[%emt 0:06:20]} 11. O-O {[%emt 0:01:11]} e5 {[%emt 0:11:38]} 12. Qb3 {[%emt 0:10:52]} a5 {[%emt 0:02:44]} 13. Na2 {[%emt 0:05:32]} Bc5 {[%emt 0:02:46]} 14. Be3 {[%emt 0:02:13]} Bd4 {[%emt 0:01:35]} 15. Rad1 {[%emt 0:05:21]} Rd8 {[%emt 0:06:42]} 16. Nc1 {[%emt 0:01:37]} Be6 {[%emt 0:01:16]} 17. Bxd4 $1 {[%emt 0:05:02]} Rxd4 {[%emt 0:03:40]} 18. Rxd4 {[%emt 0:00:47]} exd4 {[%emt 0:00:02]} 19. Qc2 {[%emt 0:01:29]} c5 {[%emt 0:02:27]} 20. Nd3 {[%emt 0:02:06]} Ng4 {[%emt 0:06:12]} 21. Nf4 {[%emt 0:02:49]} Ra6 {[%emt 0:10:15]} 22. Nd5 {[%emt 0:02:11]} Qd8 {[%emt 0:07:21]} 23. h3 {[%emt 0:01:19]} Ne5 {[%emt 0:01:15]} 24. f4 {[%emt 0:00:34]} Nc6 {[%emt 0:00:12]} 25. f5 {[%emt 0:03:28]} (25. e5 $14) 25... Bd7 {[%emt 0:02:39]} 26. b3 {[%emt 0:02:23]} Qg5 {[%emt 0:04:31]} 27. Qf2 {[%emt 0:03:35]} Ne5 {[%emt 0:02:32]} 28. h4 {[%emt 0:02:11]} Qg4 {[%emt 0:02:54] [#]} (28... Qh5 $11 {remains equal.}) 29. Kh2 {[%emt 0:00:22]} (29. Nf4 $1 $16 g5 30. fxg6 Rxg6 31. Nxg6 Qxg6 32. Qf4) 29... Rh6 {[%emt 0:01:17]} 30. Qd2 {[%emt 0:03:36]} Ra6 $1 {[%emt 0:04:36]} 31. Nf4 {[%emt 0:04:27]} g5 {[%emt 0:01:55]} 32. fxg6 $1 {[%emt 0:01:44]} hxg6 {[%emt 0:00:34]} 33. Qf2 $2 {[%emt 0:03:39] [#]} (33. Qc1 $11) 33... Rf6 {[%emt 0:00:26]} (33... g5 $1 $19 {[%cal Rg5f4]} 34. Nd5 Kg7 35. hxg5 Qh5+ 36. Kg1 Qxg5) 34. Qd2 {[%emt 0:01:50]} g5 {[%emt 0:00:40]} 35. Nd3 $1 {[%emt 0:01:24] [#]} Nxd3 $2 {[%emt 0:02:53]} ({Black should play} 35... gxh4 $1 $11 {[%mdl 512]} 36. Rxf6 Qxg3+ 37. Kg1 Nxd3) 36. Rxf6 {[%emt 0:00:11]} Ne5 {[%emt 0:00:27]} 37. Rf1 {[%emt 0:00:50]} ({Der einzige Zug:} 37. hxg5 $16 Be6 38. Rf2 (38. Qxa5 Qxg5 39. Rf4 Kg7 $11)) 37... gxh4 {[%emt 0:00:34]} 38. Qf4 {[%emt 0:00:33]} h3 {[%emt 0:00:49]} ({Better is} 38... Qxf4 $1 $11 39. gxf4 Ng4+ 40. Kg1 Ne3) 39. Bh1 $2 {[%emt 0:00:29]} (39. Bf3 $14 Qg7 40. g4) 39... Qe2+ {[%emt 0:00:07]} 40. Rf2 {[%emt 0:00:09]} Qxf2+ {[%emt 0:00:11]} 41. Qxf2 {[%emt 0:00:03]} Ng4+ {[%emt 0:00:10]} 42. Kg1 {[%emt 0:00:03]} Nxf2 {[%emt 0:00:11]} 43. Kxf2 {[%emt 0:00:02]} Bg4 {[%emt 0:00:28]} 44. e5 {[%emt 0:00:59]} b6 {[%emt 0:00:36]} 45. Ke1 $19 {[%emt 0:00:21]} Kg7 {[%emt 0:00:36]} 0-1

[Event "LAT-ch Women 2017"]
[Site "Riga"]
[Date "2017.10.09"]
[Round "6"]
[White "Lazdina, Ingrida"]
[Black "Vainovska, Valentina"]
[Result "0-1"]
[ECO "A22"]
[WhiteElo "1937"]
[BlackElo "1676"]
[Annotator "NA RC"]
[PlyCount "64"]
[EventDate "2017.??.??"]
[EventType "swiss"]
[EventCountry "LAT"]
[SourceTitle "playchess.com"]
[Source "ChessBase"]
[SourceQuality "1"]
[TimeControl "5400+30"]

{[%evp 32,64,91,-10,0,-64,-49,32767,-62,-59,-39,32767,32767,32767,-44,-84,-52,-158,43,39,39,22,80,35,55,28,27,66,40,0,0,0,0,-123,-157]} 1. c4 {[%emt 0:00:00]} e5 {[%emt 0:00:11]} 2. Nc3 {[%emt 0:00:00]} Nf6 {[%emt 0:00:46]} 3. g3 {[%emt 0:00:14]} d6 {[%emt 0:00:28]} 4. Bg2 {[%emt 0:00:14]} g6 {[%emt 0:00:41]} 5. d3 {[%emt 0:00:16]} Bg7 {[%emt 0:00:30]} 6. Nf3 {[%emt 0:03:26]} O-O {[%emt 0:01:02]} 7. O-O {[%emt 0:00:04]} Nc6 {[%emt 0:00:27]} 8. Rb1 {[%emt 0:00:47]} Bd7 {[%emt 0:04:47]} 9. b4 {[%emt 0:02:47] A26: English Opening vs King's Indian with ...Nc6 and d3} a6 {[%emt 0:01:43]} 10. Bg5 $146 {[%emt 0:13:57]} ({Predecessor:} 10. a4 Qc8 11. Bg5 Bh3 12. b5 axb5 13. cxb5 Bxg2 14. Kxg2 Ne7 15. Qb3 Qd7 16. Nd2 Nf5 17. Bxf6 Bxf6 {½-½ (41) Larsen,B (2625)-Karpov,A (2705) Milan 1975}) 10... h6 {[%emt 0:00:32]} 11. Bd2 {[%emt 0:00:10]} Rb8 {[%emt 0:00:55]} 12. Qc1 {[%emt 0:03:43]} Kh7 {[%emt 0:00:30]} 13. a4 {[%emt 0:03:08]} Nd4 {[%emt 0:22:04]} 14. e3 {[%emt 0:00:51]} Ne6 {[%emt 0:05:14]} 15. d4 {[%emt 0:08:11]} exd4 {[%emt 0:14:38]} 16. exd4 {[%emt 0:00:22]} c5 {[%emt 0:04:27]} 17. d5 {[%emt 0:05:33]} ({White should play} 17. bxc5 $16 dxc5 18. d5) 17... cxb4 {[%emt 0:08:21]} 18. Rxb4 {[%emt 0:24:25]} Nc5 {[%emt 0:00:37]} 19. Qa3 {[%emt 0:00:23]} Bf5 {[%emt 0:12:07]} 20. a5 {[%emt 0:06:05]} Nfd7 {[%emt 0:05:09]} 21. Na2 {[%emt 0:10:20]} Re8 {[%emt 0:02:44]} 22. Nc1 {[%emt 0:03:01]} Qc7 {[%emt 0:03:26]} 23. Nh4 {[%emt 0:03:57]} Be4 {[%emt 0:02:25]} 24. f3 {[%emt 0:00:42] [#]} (24. Re1 $142) 24... g5 $2 {[%emt 0:01:05]} (24... Bc2 $1 $19 25. Bh3 b5 26. cxb5 axb5 27. Bxd7 Qxd7) 25. fxe4 {[%emt 0:01:20]} gxh4 {[%emt 0:01:28]} 26. Rxf7 {[%emt 0:02:22]} Kg8 {[%emt 0:00:58]} (26... Rf8 $11 27. Rf5 Ne5) 27. Qf3 {[%emt 0:03:35]} Nxe4 {[%emt 0:01:46]} 28. Rxg7+ {[%emt 0:01:58]} Kxg7 {[%emt 0:00:11]} 29. Qg4+ {[%emt 0:00:24]} Ng5 $1 {[%emt 0:00:50]} 30. gxh4 {[%emt 0:02:09]} (30. Nd3 $14 Nc5 31. Bxg5 (31. gxh4 Nxd3 32. Qd4+ Ne5 $17) 31... hxg5 32. Qxg5+ Kh8 33. Qxh4+ Kg8 34. Qg5+ Qg7 35. Qxg7+ Kxg7 36. Nxc5 Re1+ 37. Kf2 dxc5 38. Rb2 (38. Kxe1 cxb4 39. Kd2 Kf6 $11)) 30... Qc5+ {[%emt 0:00:13]} 31. Kh1 {[%emt 0:00:10]} Qf2 $1 {[%emt 0:01:40]} 32. Qxd7+ {[%emt 0:00:51] [#]} (32. Bc3+ $11 Kg8 33. hxg5 (33. Qxd7 $2 {gets mated.} Re1+ 34. Bxe1 Qxe1+ 35. Bf1 Qxf1#) (33. Nd3 Qc2 $11) 33... Re1+ 34. Bxe1 Qxe1+ 35. Bf1 Qxf1+ 36. Qg1 Qf3+ 37. Qg2 Qd1+ 38. Qg1 Qf3+ 39. Qg2 Qd1+ 40. Qg1 Qf3+) 32... Kg8 $17 {[%emt 0:01:31]} 0-1

[Event "LAT-ch Women 2017"]
[Site "Riga"]
[Date "2017.10.09"]
[Round "6"]
[White "Ungure, Liga"]
[Black "Maklakova, Nellija"]
[Result "0-1"]
[ECO "C11"]
[WhiteElo "1923"]
[BlackElo "1800"]
[Annotator "NA RC"]
[PlyCount "88"]
[EventDate "2017.??.??"]
[EventType "swiss"]
[EventCountry "LAT"]
[SourceTitle "playchess.com"]
[Source "ChessBase"]
[SourceQuality "1"]
[TimeControl "5400+30"]

{[%evp 29,88,-81,-70,-51,-102,-93,-61,-92,32767,-109,-96,-120,-134,-133,-121,-143,32767,32767,-27,-34,28,32767,32767,32767,32767,81,32767,32767,16,32767,135,141,125,121,32767,32767,32767,32767,32767,32767,32767,32767,32767,32767,123,69,145,192,227,-13,0,0,0,0,0,-5297,-29980,-5202,-29983,-29992,-29992]} 1. e4 {[%emt 0:00:00]} e6 {[%emt 0:00:06]} 2. d4 {[%emt 0:00:00]} d5 {[%emt 0:00:05]} 3. Nc3 {[%emt 0:00:00]} Nf6 {[%emt 0:00:14]} 4. e5 {[%emt 0:00:00]} Nfd7 {[%emt 0:00:07]} 5. Nf3 {[%emt 0:00:05]} c5 {[%emt 0:00:24]} 6. dxc5 {[%emt 0:00:15]} Nc6 {[%emt 0:03:47]} 7. Bf4 {[%emt 0:01:15]} Bxc5 {[%emt 0:00:45]} 8. Bd3 {[%emt 0:00:31]} Qb6 {[%emt 0:01:48]} 9. O-O {[%emt 0:01:59]} O-O {[%emt 0:11:14] C11: Französische Verteidigung} (9... Qb4 10. Bg3 a6 11. a3 Qg4 12. Qd2 Nd4 13. Nxd4 Bxd4 14. Be2 Bxc3 15. bxc3 Qa4 16. Rfb1 Nc5 17. f3 {1-0 (62) Waters,C (2207)-Walker,N (2177) England 2016}) 10. Bxh7+ {[%emt 0:30:51]} Kxh7 {[%emt 0:00:38]} 11. Ng5+ {[%emt 0:00:06]} Kg6 {[%emt 0:02:01]} 12. Qd3+ {[%emt 0:10:14]} f5 {[%emt 0:03:10]} 13. exf6+ $146 {[%emt 0:14:09]} ({Vorgänger:} 13. Nxe6 Re8 14. Qg3+ Kf7 15. Qxg7+ Kxe6 16. Qg6+ Ke7 {1-0 (16) Nemeth,L-Weiss,F LSS email 2006}) 13... Kxf6 {[%emt 0:00:16]} 14. Nh7+ {[%emt 0:07:39]} Kf7 {[%emt 0:01:20]} 15. Nxf8 {[%emt 0:03:07]} (15. Ng5+ $11 Ke7 16. Qg6 Rxf4 17. Qxe6+ Kd8 18. Nxd5) 15... Nxf8 {[%emt 0:10:20]} 16. Na4 {[%emt 0:01:57]} Qb4 {[%emt 0:05:35]} 17. Nxc5 {[%emt 0:00:07]} Qxf4 {[%emt 0:01:25]} 18. c3 {[%emt 0:02:04]} Ne5 {[%emt 0:01:57]} 19. Qg3 {[%emt 0:02:01]} Nfg6 {[%emt 0:05:52]} 20. Rae1 {[%emt 0:01:49]} Qxg3 {[%emt 0:01:58]} 21. fxg3+ {[%emt 0:02:16]} Ke7 {[%emt 0:00:49]} 22. Re3 {[%emt 0:03:50]} b6 {[%emt 0:02:06]} 23. Nb3 {[%emt 0:02:31] [#]} Ba6 {[%emt 0:03:45]} ({Black should try} 23... Nc4 $1 $17 {[%cal Rc4e3]} 24. Re2 Ba6) 24. Rfe1 {[%emt 0:00:37]} Rf8 {[%emt 0:01:08]} (24... Kd6 $15) 25. h4 {[%emt 0:00:42]} Rf5 {[%emt 0:25:09]} 26. Nd4 {[%emt 0:00:21]} Rh5 {[%emt 0:00:17] [#]} 27. Nc6+ $1 {[%emt 0:02:45]} Kf6 {[%emt 0:00:41]} 28. Nxa7 {[%emt 0:00:58]} Nf8 {[%emt 0:01:01]} 29. a4 {[%emt 0:01:02]} Nd3 {[%emt 0:01:17]} (29... Rf5 $11) 30. Rf1+ {[%emt 0:02:21]} Rf5 {[%emt 0:00:28]} 31. Rxf5+ {[%emt 0:00:03]} exf5 {[%emt 0:00:09]} 32. Re8 {[%emt 0:01:49]} Nd7 {[%emt 0:00:40]} 33. b4 {[%emt 0:00:36]} Nb2 {[%emt 0:01:38]} 34. a5 {[%emt 0:00:40]} bxa5 {[%emt 0:01:03]} 35. bxa5 {[%emt 0:00:02]} Nd1 {[%emt 0:00:24]} 36. Nc6 {[%emt 0:00:46]} Nxc3 {[%emt 0:04:07]} 37. Nb4 {[%emt 0:00:42]} Nc5 {[%emt 0:02:09]} 38. Nxa6 {[%emt 0:02:17]} Nxa6 {[%emt 0:00:36] [#]} 39. Rc8 $2 {[%emt 0:00:14]} ({White should try} 39. Ra8 $1 $18 {[%cal Ra8a6]} Nc7 40. Rc8) 39... d4 $1 {[%emt 0:01:03]} 40. Kf1 {[%emt 0:03:37]} Ke5 {[%emt 0:02:58]} 41. Rc6 {[%emt 0:00:58]} Nb4 {[%emt 0:00:41]} 42. Rg6 $2 {[%emt 0:01:17]} (42. Rc4 $11 Ncd5 43. Ke2) 42... d3 {[%emt 0:01:29]} 43. Ke1 {[%emt 0:00:20]} Ne4 {[%emt 0:00:30]} 44. a6 {[%emt 0:02:31]} Nc2+ {[%emt 0:00:59]} 0-1

[Event "LAT-ch Women 2017"]
[Site "Riga"]
[Date "2017.10.09"]
[Round "6"]
[White "Golsta, Ramona"]
[Black "Ter-Avetisjana, Agnesa Stepania"]
[Result "0-1"]
[ECO "D02"]
[WhiteElo "1719"]
[BlackElo "1319"]
[Annotator "NA RC"]
[PlyCount "76"]
[EventDate "2017.??.??"]
[EventType "swiss"]
[EventCountry "LAT"]
[SourceTitle "playchess.com"]
[Source "ChessBase"]
[SourceQuality "1"]
[TimeControl "5400+30"]

1. d4 {[%emt 0:00:00]} d5 {[%emt 0:00:05]} 2. Nf3 {[%emt 0:00:00]} Nc6 {[%emt 0:00:23]} 3. Bf4 {[%emt 0:00:21]} Nf6 {[%emt 0:00:16]} 4. e3 {[%emt 0:00:25]} a6 {[%emt 0:00:29]} 5. a4 {[%emt 0:01:29]} Bg4 {[%emt 0:01:02]} 6. Nbd2 {[%emt 0:01:49]} e6 {[%emt 0:01:25]} 7. h3 {[%emt 0:01:12]} Bh5 {[%emt 0:00:44]} 8. Be2 {[%emt 0:01:16]} Bd6 {[%emt 0:00:47]} 9. Bxd6 {[%emt 0:03:35]} Qxd6 {[%emt 0:00:21]} 10. O-O {[%emt 0:00:34]} O-O {[%emt 0:00:38]} 11. c4 {[%emt 0:13:53]} Rad8 {[%emt 0:03:38]} 12. Rc1 {[%emt 0:09:28]} Ne4 {[%emt 0:05:43]} 13. Nxe4 {[%emt 0:05:24]} dxe4 {[%emt 0:00:14]} 14. Nd2 {[%emt 0:00:14]} Bxe2 {[%emt 0:01:13]} 15. Qxe2 {[%emt 0:00:07]} f5 {[%emt 0:01:08]} 16. Rfd1 {[%emt 0:02:36]} Ne7 {[%emt 0:04:35]} 17. f3 {[%emt 0:11:31]} exf3 {[%emt 0:02:11]} 18. Nxf3 {[%emt 0:00:13]} Rf6 {[%emt 0:02:42]} 19. Ne5 {[%emt 0:05:05]} f4 {[%emt 0:06:59]} 20. e4 {[%emt 0:02:29]} Qb6 {[%emt 0:09:08]} 21. Qc2 {[%emt 0:06:57]} Rxd4 {[%emt 0:04:26]} 22. c5 {[%emt 0:00:14]} Qb4 {[%emt 0:03:02]} 23. b3 {[%emt 0:06:13]} Rxe4 {[%emt 0:03:33]} 24. Nd3 {[%emt 0:01:10]} Qa5 {[%emt 0:06:39]} 25. b4 {[%emt 0:12:43]} Rxb4 {[%emt 0:00:16]} 26. Nxb4 {[%emt 0:00:09]} Qxb4 {[%emt 0:00:09]} 27. Rd8+ {[%emt 0:00:46]} Kf7 {[%emt 0:00:29]} 28. Rd7 {[%emt 0:00:36]} f3 {[%emt 0:01:31]} 29. g3 {[%emt 0:08:47]} f2+ {[%emt 0:01:41]} 30. Kf1 {[%emt 0:00:29]} Qa3 {[%emt 0:01:04]} 31. Qc3 {[%emt 0:00:56]} Qxa4 {[%emt 0:00:23]} 32. Rxc7 {[%emt 0:00:41]} Qe4 {[%emt 0:01:53]} 33. Qa1 {[%emt 0:00:23]} Qh1+ {[%emt 0:02:18]} 34. Ke2 {[%emt 0:00:07]} Qg2 {[%emt 0:00:38]} 35. Rf1 {[%emt 0:00:43]} Qxg3 {[%emt 0:01:28]} 36. Rd7 {[%emt 0:01:40]} Qf3+ {[%emt 0:02:39]} 37. Kd2 {[%emt 0:00:19]} Qf4+ {[%emt 0:00:15]} 38. Ke2 {[%emt 0:00:27]} Qc4+ {[%emt 0:00:08]} 0-1

[Event "LAT-ch Women 2017"]
[Site "Riga"]
[Date "2017.10.09"]
[Round "6"]
[White "Dombrovska, Stefanija"]
[Black "Osobskaja, Zinaida"]
[Result "0-1"]
[ECO "D37"]
[WhiteElo "1673"]
[BlackElo "1646"]
[Annotator "NA RC"]
[PlyCount "156"]
[EventDate "2017.??.??"]
[EventType "swiss"]
[EventCountry "LAT"]
[SourceTitle "playchess.com"]
[Source "ChessBase"]
[SourceQuality "1"]
[TimeControl "5400+30"]

1. d4 {[%emt 0:00:00]} e6 {[%emt 0:00:19]} 2. c4 {[%emt 0:00:00]} d5 {[%emt 0:00:09]} 3. Nf3 {[%emt 0:00:32]} Nf6 {[%emt 0:00:26]} 4. Nc3 {[%emt 0:00:37]} Be7 {[%emt 0:02:24]} 5. Bg5 {[%emt 0:00:13]} b6 {[%emt 0:01:07]} 6. e3 {[%emt 0:00:34]} O-O {[%emt 0:00:13]} 7. Bd3 {[%emt 0:00:23]} Nbd7 {[%emt 0:01:29]} 8. O-O {[%emt 0:00:16]} c5 {[%emt 0:00:16]} 9. cxd5 {[%emt 0:00:29]} Nxd5 {[%emt 0:02:24]} 10. Bxe7 {[%emt 0:00:21]} Nxe7 {[%emt 0:01:34]} 11. Qc2 {[%emt 0:04:05]} g6 {[%emt 0:00:17]} 12. Rad1 {[%emt 0:00:43]} cxd4 {[%emt 0:02:26]} 13. exd4 {[%emt 0:02:03]} Bb7 {[%emt 0:01:21]} 14. Be4 {[%emt 0:00:07]} Qc7 {[%emt 0:01:16]} 15. Bxb7 {[%emt 0:01:22]} Qxb7 {[%emt 0:00:12]} 16. Qd2 {[%emt 0:01:32]} Nf6 {[%emt 0:02:22]} 17. Rfe1 {[%emt 0:00:51]} Kg7 {[%emt 0:00:57]} 18. Ne5 {[%emt 0:01:04]} Ned5 {[%emt 0:02:11]} 19. Nxd5 Nxd5 20. Re4 {[%emt 0:01:29]} Qe7 {[%emt 0:08:04]} 21. Nf3 {[%emt 0:03:13]} h6 {[%emt 0:02:27]} 22. Rde1 {[%emt 0:00:20]} Rac8 {[%emt 0:01:31]} 23. a3 {[%emt 0:01:52]} Qc7 {[%emt 0:03:04]} 24. g3 {[%emt 0:02:52]} Nf6 {[%emt 0:01:03]} 25. Rh4 {[%emt 0:00:45]} Rh8 {[%emt 0:00:54]} 26. Qe3 {[%emt 0:03:50]} Nd5 {[%emt 0:01:55]} 27. Qe5+ {[%emt 0:00:19]} Qxe5 {[%emt 0:00:18]} 28. dxe5 {[%emt 0:01:07]} Rc2 {[%emt 0:00:15]} 29. Rb1 {[%emt 0:02:47]} Rhc8 {[%emt 0:00:35]} 30. Rd4 {[%emt 0:04:13]} a5 {[%emt 0:01:26]} 31. Kf1 {[%emt 0:03:27]} R8c7 {[%emt 0:01:05]} 32. Rd2 {[%emt 0:00:20]} R2c5 {[%emt 0:00:22]} 33. Nd4 {[%emt 0:02:44]} g5 {[%emt 0:01:30]} 34. Ke2 {[%emt 0:01:54]} Kg6 {[%emt 0:02:39]} 35. Kd3 {[%emt 0:00:18]} Ne7 {[%emt 0:02:21]} 36. f4 {[%emt 0:06:38]} Rd7 {[%emt 0:01:11]} 37. Ke3 {[%emt 0:04:26]} Rc4 {[%emt 0:01:46]} 38. Rbd1 {[%emt 0:00:46]} Nd5+ {[%emt 0:03:41]} 39. Ke4 {[%emt 0:00:57]} f5+ {[%emt 0:03:54]} 40. exf6 {[%emt 0:00:20]} Kxf6 {[%emt 0:00:19]} 41. fxg5+ {[%emt 0:00:12]} hxg5 {[%emt 0:00:11]} 42. Rf1+ {[%emt 0:01:11]} Ke7 {[%emt 0:01:08]} 43. Kd3 {[%emt 0:04:26]} Rc5 {[%emt 0:03:04]} 44. Re1 {[%emt 0:00:21]} Nc7 {[%emt 0:01:04]} 45. Ke3 {[%emt 0:01:04]} Kf6 {[%emt 0:00:56]} 46. Rf2+ {[%emt 0:01:36]} Kg6 {[%emt 0:01:01]} 47. Nf3 {[%emt 0:00:54]} e5 {[%emt 0:02:27]} 48. Nd2 {[%emt 0:03:24]} Nd5+ {[%emt 0:01:38]} 49. Ke2 {[%emt 0:03:17]} Rc2 {[%emt 0:02:19]} 50. Kf1 {[%emt 0:02:49]} Rf7 {[%emt 0:01:55]} 51. Rxf7 {[%emt 0:01:28]} Kxf7 {[%emt 0:00:12]} 52. Nf3 {[%emt 0:00:10]} Rxb2 {[%emt 0:01:58]} 53. Rxe5 {[%emt 0:00:12]} Ne7 {[%emt 0:01:54]} 54. Rxg5 {[%emt 0:03:08]} Rb3 {[%emt 0:00:31]} 55. Kg2 {[%emt 0:00:51]} Rxa3 {[%emt 0:00:17]} 56. Rb5 {[%emt 0:00:02]} Ra2+ {[%emt 0:00:41]} 57. Kh3 {[%emt 0:00:04]} Nc8 {[%emt 0:01:43]} 58. Ne5+ {[%emt 0:00:02]} Ke6 {[%emt 0:00:48]} 59. Nc4 {[%emt 0:00:02]} Kd7 {[%emt 0:00:56]} 60. Ne5+ {[%emt 0:02:33]} Kd6 {[%emt 0:00:43]} 61. Nd3 {[%emt 0:01:51]} Rd2 {[%emt 0:02:20]} 62. Ne5 {[%emt 0:02:01]} Re2 {[%emt 0:00:34]} 63. Nc4+ {[%emt 0:00:29]} Kc6 {[%emt 0:00:09]} 64. Rb1 {[%emt 0:00:55]} a4 {[%emt 0:00:15]} 65. g4 {[%emt 0:01:39]} b5 {[%emt 0:00:06]} 66. Nb2 {[%emt 0:02:16]} a3 {[%emt 0:01:44]} 67. Rc1+ {[%emt 0:00:16]} Kb7 {[%emt 0:01:33]} 68. Nd1 {[%emt 0:00:23]} a2 {[%emt 0:02:11]} 69. g5 {[%emt 0:00:53]} Ne7 {[%emt 0:00:41]} 70. Kg3 {[%emt 0:00:17]} b4 {[%emt 0:00:18]} 71. h4 {[%emt 0:00:15]} b3 {[%emt 0:01:32]} 72. h5 {[%emt 0:00:26]} Re1 {[%emt 0:00:56]} 73. Ra1 {[%emt 0:01:43]} Rxd1 {[%emt 0:00:20]} 74. Rxd1 {[%emt 0:00:22]} b2 {[%emt 0:00:08]} 75. Rd7+ {[%emt 0:00:07]} Kc6 {[%emt 0:00:03]} 76. Rxe7 {[%emt 0:00:35]} a1=Q {[%emt 0:00:20]} 77. g6 {[%emt 0:01:02]} b1=Q {[%emt 0:00:44]} 78. Rf7 {[%emt 0:01:39]} Qe5+ {[%emt 0:00:44]} 0-1

[Event "LAT-ch Women 2017"]
[Site "Riga"]
[Date "2017.10.10"]
[Round "7"]
[White "Erneste, Inguna"]
[Black "Krumina, Linda"]
[Result "1-0"]
[ECO "C08"]
[WhiteElo "2133"]
[BlackElo "2096"]
[Annotator "ChessBase"]
[PlyCount "56"]
[EventDate "2017.??.??"]
[EventType "swiss"]
[EventCountry "LAT"]
[SourceTitle "playchess.com"]
[Source "ChessBase"]
[SourceQuality "1"]
[TimeControl "5400+30"]

1. e4 {[%emt 0:00:18]} e6 {[%emt 0:04:14]} 2. d4 {[%emt 0:00:06]} d5 {[%emt 0:00:05]} 3. Nd2 {[%emt 0:00:17]} c5 {[%emt 0:00:12]} 4. exd5 {[%emt 0:01:31]} exd5 {[%emt 0:00:19]} 5. dxc5 {[%emt 0:05:58]} Bxc5 {[%emt 0:01:35]} 6. Nb3 {[%emt 0:01:10]} Bb6 {[%emt 0:02:23]} 7. Nf3 {[%emt 0:01:10]} Ne7 {[%emt 0:01:55]} 8. Be2 {[%emt 0:04:14]} Nbc6 {[%emt 0:02:24]} 9. O-O {[%emt 0:03:44]} O-O {[%emt 0:03:18]} 10. c3 {[%emt 0:00:13]} Ng6 {[%emt 0:05:56]} 11. h3 {[%emt 0:12:52]} Bf5 {[%emt 0:09:33]} 12. Nfd4 {[%emt 0:10:25]} Be4 {[%emt 0:03:58]} 13. f3 {[%emt 0:19:05]} Bf5 {[%emt 0:01:39]} 14. Kh2 {[%emt 0:08:08]} Qd6+ {[%emt 0:04:26]} 15. g3 {[%emt 0:01:37]} Nxd4 {[%emt 0:03:27]} 16. Nxd4 {[%emt 0:00:55]} Bd7 {[%emt 0:02:35]} 17. f4 {[%emt 0:07:47]} Rad8 {[%emt 0:02:46]} 18. Bf3 {[%emt 0:00:15]} Rfe8 {[%emt 0:06:40]} 19. Bg2 {[%emt 0:01:37]} Bxd4 {[%emt 0:14:14]} 20. Qxd4 {[%emt 0:01:32]} Re2 {[%emt 0:01:17]} 21. Bd2 {[%emt 0:02:13]} Ne7 {[%emt 0:06:19]} 22. Rae1 {[%emt 0:01:10]} Nf5 {[%emt 0:04:15]} 23. Qd3 {[%emt 0:00:05]} Rxe1 {[%emt 0:00:38]} 24. Rxe1 {[%emt 0:00:18]} Be6 {[%emt 0:00:41]} 25. Be3 {[%emt 0:02:44]} h5 {[%emt 0:01:56]} 26. Bc1 {[%emt 0:01:43]} b6 {[%emt 0:02:29]} 27. Rd1 {[%emt 0:01:04]} Qc5 {[%emt 0:04:59]} 28. Re1 {[%emt 0:01:11]} Qc4 1-0

[Event "LAT-ch Women 2017"]
[Site "Riga"]
[Date "2017.10.10"]
[Round "7"]
[White "Sarnovska, Eira"]
[Black "Dombrovska, Stefanija"]
[Result "1/2-1/2"]
[ECO "A09"]
[WhiteElo "1727"]
[BlackElo "1673"]
[Annotator "NA"]
[PlyCount "87"]
[EventDate "2017.??.??"]
[EventType "swiss"]
[EventCountry "LAT"]
[SourceTitle "playchess.com"]
[Source "ChessBase"]
[SourceQuality "1"]
[TimeControl "5400+30"]

1. Nf3 {[%emt 0:00:17]} d5 {[%emt 0:00:00]} 2. c4 {[%emt 0:00:23]} d4 {[%emt 0:00:09]} 3. g3 {[%emt 0:00:47]} c5 {[%emt 0:00:16]} 4. d3 {[%emt 0:00:57]} Nc6 {[%emt 0:00:11]} 5. Bg2 {[%emt 0:00:23]} e5 {[%emt 0:00:32]} 6. O-O {[%emt 0:00:43]} Nf6 {[%emt 0:00:02]} 7. Bg5 {[%emt 0:02:07]} Be7 {[%emt 0:00:03]} 8. Nbd2 {[%emt 0:00:48]} h6 {[%emt 0:00:17]} 9. Bxf6 {[%emt 0:00:19]} Bxf6 {[%emt 0:00:11]} 10. a3 {[%emt 0:06:58]} O-O {[%emt 0:00:22]} 11. Rb1 {[%emt 0:01:36]} a5 {[%emt 0:00:42]} 12. Qc2 {[%emt 0:07:21]} Qc7 {[%emt 0:02:20]} 13. e3 {[%emt 0:03:08]} Bf5 {[%emt 0:02:25]} 14. exd4 {[%emt 0:01:40]} exd4 {[%emt 0:04:03]} 15. Rfe1 {[%emt 0:02:44]} Rfe8 {[%emt 0:01:13]} 16. Ne4 {[%emt 0:03:55]} Bxe4 {[%emt 0:00:34]} 17. dxe4 {[%emt 0:00:10]} Rad8 {[%emt 0:00:42]} 18. Qd3 {[%emt 0:04:01]} a4 {[%emt 0:02:56]} 19. b3 {[%emt 0:02:04]} axb3 {[%emt 0:04:46]} 20. Rxb3 {[%emt 0:00:42]} Na5 {[%emt 0:01:06]} 21. Rb5 {[%emt 0:00:44]} b6 {[%emt 0:02:27]} 22. Reb1 {[%emt 0:02:27]} Rb8 {[%emt 0:02:37]} 23. Nd2 {[%emt 0:05:00]} g5 {[%emt 0:02:05]} 24. Qf3 {[%emt 0:08:03]} Kg7 {[%emt 0:01:44]} 25. Qg4 {[%emt 0:01:58]} Qd6 {[%emt 0:04:17]} 26. f4 {[%emt 0:05:01]} Qe6 {[%emt 0:00:13]} 27. Qxe6 {[%emt 0:01:34]} fxe6 {[%emt 0:01:07]} 28. e5 {[%emt 0:01:49]} Be7 {[%emt 0:00:09]} 29. Rxb6 {[%emt 0:00:13]} Rxb6 {[%emt 0:02:29]} 30. Rxb6 {[%emt 0:00:09]} Bd8 {[%emt 0:03:15]} 31. Rb5 {[%emt 0:00:58]} gxf4 {[%emt 0:00:19]} 32. gxf4 {[%emt 0:00:24]} Rf8 {[%emt 0:01:20]} 33. Rxc5 {[%emt 0:01:33]} Rxf4 {[%emt 0:01:48]} 34. Rc8 {[%emt 0:00:48]} Bh4 {[%emt 0:02:47]} 35. Nf3 {[%emt 0:03:50]} d3 {[%emt 0:02:21]} 36. Rc7+ {[%emt 0:05:08]} Kg6 {[%emt 0:00:40]} 37. Rd7 {[%emt 0:02:09]} Nxc4 {[%emt 0:01:14]} 38. Rxd3 {[%emt 0:00:13]} Be7 {[%emt 0:01:35]} 39. Kh1 {[%emt 0:12:36]} Bxa3 {[%emt 0:01:24]} 40. Bh3 {[%emt 0:01:17]} Bb2 {[%emt 0:00:47]} 41. Bxe6 {[%emt 0:01:30]} Nxe5 {[%emt 0:00:17]} 42. Nxe5+ {[%emt 0:01:05]} Bxe5 {[%emt 0:00:21]} 43. Rd2 {[%emt 0:01:59]} Kf6 {[%emt 0:02:30]} 44. Bc8 {[%emt 0:00:49]} 1/2-1/2